fUSD/lending_fUSD_20250530
["ID","MTS","AMOUNT","RATE_DAILY","PERIOD"]
[363128190,1748593838914,-501.55169409,0.00021917,2]
[363128191,1748593838923,-500.0,0.00021917,2]
[363128192,1748593838933,-500.0,0.00021917,2]
[363128193,1748593838944,-505.28857616,0.00021917,2]
[363128194,1748593838954,-420.0,0.00021917,2]
[363128195,1748593838965,-550.35,0.00021917,2]
[363128196,1748593838975,-685.02,0.00021917,2]
[363128197,1748593838985,-423.19778476,0.00021917,2]
[363128198,1748593838995,-532.86,0.00021917,2]
[363128200,1748593839005,-384.4964958,0.00021917,2]
[363128201,1748593839015,-362.72556154,0.00021917,2]
[363128203,1748593839025,-420.0,0.00021917,2]
[363128205,1748593839036,-506.67937776,0.00021917,2]
[363128208,1748593839048,-817.71,0.00021917,2]
[363128210,1748593839057,-864.57,0.00021917,2]
[363128212,1748593839067,-420.0,0.00021917,2]
[363128214,1748593839077,-420.0,0.00021917,2]
[363128216,1748593839089,-519.80055057,0.00021917,2]
[363128218,1748593839099,-500.0,0.00021917,2]
[363128220,1748593839110,-715.8,0.00021917,2]
[363128222,1748593839124,-420.0,0.00021917,2]
[363128224,1748593839134,-151.22567738,0.00021917,2]
[363128226,1748593839144,-506.21,0.00021917,2]
[363128228,1748593839154,-805.75,0.00021917,2]
[363128230,1748593839165,-420.0,0.00021917,2]
[363128232,1748593839175,-420.0,0.00021917,2]
[363128234,1748593839185,-420.0,0.00021917,2]
[363128236,1748593839195,-420.0,0.00021917,2]
[363128238,1748593839206,-529.39,0.00021917,2]
[363128240,1748593839216,-420.0,0.00021917,2]
[363128242,1748593839226,-420.0,0.00021917,2]
[363128244,1748593839236,-420.0,0.00021917,2]
[363128247,1748593839245,-422.37615518,0.00021917,2]
[363128249,1748593839256,-420.0,0.00021917,2]
[363128251,1748593839266,-712.17,0.00021917,2]
[363128253,1748593839275,-547.94,0.00021917,2]
[363128255,1748593839287,-500.0,0.00021917,2]
[363128257,1748593839296,-250.0,0.00021917,2]
[363128259,1748593839306,-420.0,0.00021917,2]
[363128261,1748593839315,-430.24124531,0.00021917,2]
[363128263,1748593839325,-420.0,0.00021917,2]
[363128265,1748593839336,-420.0,0.00021917,2]
[363128267,1748593839346,-426.8308084,0.00021917,2]
[363128269,1748593839355,-500.0,0.00021917,2]
[363128271,1748593839366,-420.0,0.00021917,2]
[363128273,1748593839375,-688.31,0.00021917,2]
[363128275,1748593839385,-1097.86,0.00021917,2]
[363128277,1748593839395,-420.0,0.00021917,2]
[363128279,1748593839404,-420.0,0.00021917,2]
[363128281,1748593839415,-420.0,0.00021917,2]
[363128283,1748593839424,-500.0,0.00021917,2]
[363128285,1748593839434,-422.50052636,0.00021917,2]
[363128286,1748593839443,-579.73,0.00021917,2]
[363128287,1748593839456,-420.0,0.00021917,2]
[363128288,1748593839466,-420.0,0.00021917,2]
[363128289,1748593839476,-420.0,0.00021917,2]
[363128290,1748593839486,-500.0,0.00021917,2]
[363128291,1748593839496,-420.0,0.00021917,2]
[363128292,1748593839506,-420.0,0.00021917,2]
[363128293,1748593839517,-420.0,0.00021917,2]
[363128294,1748593839527,-420.0,0.00021917,2]
[363128295,1748593839537,-500.0,0.00021917,2]
[363128296,1748593839547,-420.0,0.00021917,2]
[363128297,1748593839557,-424.81527192,0.00021917,2]
[363128298,1748593839567,-420.0,0.00021917,2]
[363128299,1748593839578,-420.0,0.00021917,2]
[363128301,1748593839590,-500.0,0.00021917,2]
[363128302,1748593839600,-1006.51553197,0.00021917,2]
[363128303,1748593839611,-420.0,0.00021917,2]
[363128304,1748593839621,-429.86,0.00021917,2]
[363128305,1748593839631,-420.0,0.00021917,2]
[363128306,1748593839640,-420.0,0.00021917,2]
[363128307,1748593839651,-420.0,0.00021917,2]
[363128308,1748593839662,-420.0,0.00021917,2]
[363128309,1748593839672,-420.0,0.00021917,2]
[363128310,1748593839681,-420.0,0.00021917,2]
[363128311,1748593839691,-420.0,0.00021917,2]
[363128312,1748593839701,-1387.22,0.00021917,2]
[363128313,1748593839711,-300.0,0.00021917,2]
[363128314,1748593839721,-420.0,0.00021917,2]
[363128315,1748593839731,-500.0,0.00021917,2]
[363128316,1748593839741,-423.97085056,0.00021917,2]
[363128317,1748593839751,-420.0,0.00021917,2]
[363128318,1748593839761,-420.0,0.00021917,2]
[363128319,1748593839771,-420.0,0.00021917,2]
[363128320,1748593839781,-853.39,0.00021917,2]
[363128321,1748593839793,-420.0,0.00021917,2]
[363128322,1748593839802,-420.0,0.00021917,2]
[363128324,1748593839812,-475.78,0.00021917,2]
[363128325,1748593839822,-421.76156006,0.00021917,2]
[363128326,1748593839832,-420.0,0.00021917,2]
[363128327,1748593839842,-420.0,0.00021917,2]
[363128328,1748593839852,-420.0,0.00021917,2]
[363128329,1748593839862,-424.57219225,0.00021917,2]
[363128330,1748593839872,-420.0,0.00021917,2]
[363128331,1748593839882,-420.0,0.00021917,2]
[363128332,1748593839892,-420.0,0.00021917,2]
[363128333,1748593839902,-420.0,0.00021917,2]
[363128334,1748593839911,-420.0,0.00021917,2]
[363128335,1748593839921,-422.5,0.00021917,2]
[363128336,1748593839931,-420.0,0.00021917,2]
[363128337,1748593839941,-420.0,0.00021917,2]
[363128338,1748593839951,-420.0,0.00021917,2]
[363128339,1748593839961,-420.0,0.00021917,2]
[363128340,1748593839971,-420.0,0.00021917,2]
[363128341,1748593839980,-416.97475516,0.00021917,2]
[363128342,1748593839990,-420.0,0.00021917,2]
[363128343,1748593840000,-504.7075415,0.00021917,2]
[363128344,1748593840010,-420.0,0.00021917,2]
[363128345,1748593840020,-420.0,0.00021917,2]
[363128346,1748593840030,-468.66,0.00021917,2]
[363128347,1748593840040,-674.08,0.00021917,2]
[363128348,1748593840050,-420.0,0.00021917,2]
[363128349,1748593840060,-420.0,0.00021917,2]
[363128350,1748593840070,-610.1,0.00021917,2]
[363128351,1748593840079,-420.0,0.00021917,2]
[363128352,1748593840092,-425.69755832,0.00021917,2]
[363128353,1748593840102,-420.0,0.00021917,2]
[363128354,1748593840115,-503.14248089,0.00021917,2]
[363128355,1748593840129,-503.70599313,0.00021917,2]
[363128356,1748593840139,-769.95,0.00021917,2]
[363128357,1748593840150,-420.0,0.00021917,2]
[363128358,1748593840162,-420.0,0.00021917,2]
[363128359,1748593840172,-420.0,0.00021917,2]
[363128360,1748593840182,-420.0,0.00021917,2]
[363128361,1748593840193,-420.0,0.00021917,2]
[363128362,1748593840203,-420.0,0.00021917,2]
[363128363,1748593840213,-420.0,0.00021917,2]
[363128364,1748593840223,-420.0,0.00021917,2]
[363128365,1748593840233,-420.0,0.00021917,2]
[363128366,1748593840243,-500.0,0.00021917,2]
[363128367,1748593840254,-420.0,0.00021917,2]
[363128368,1748593840264,-500.0,0.00021917,2]
[363128369,1748593840275,-420.0,0.00021917,2]
[363128370,1748593840285,-420.0,0.00021917,2]
[363128371,1748593840296,-500.0,0.00021917,2]
[363128372,1748593840307,-500.0,0.00021917,2]
[363128374,1748593840317,-426.58148416,0.00021917,2]
[363128375,1748593840327,-420.0,0.00021917,2]
[363128376,1748593840337,-422.06665195,0.00021917,2]
[363128377,1748593840347,-420.0,0.00021917,2]
[363128378,1748593840357,-500.0,0.00021917,2]
[363128379,1748593840367,-420.0,0.00021917,2]
[363128380,1748593840378,-420.0,0.00021917,2]
[363128381,1748593840388,-506.25502807,0.00021917,2]
[363128382,1748593840399,-420.0,0.00021917,2]
[363128383,1748593840409,-420.0,0.00021917,2]
[363128384,1748593840420,-466.55157668,0.00021917,2]
[363128385,1748593840430,-420.0,0.00021917,2]
[363128386,1748593840444,-420.0,0.00021917,2]
[363128387,1748593840455,-420.0,0.00021917,2]
[363128388,1748593840465,-932.83,0.00021917,2]
[363128389,1748593840476,-431.49,0.00021917,2]
[363128390,1748593840490,-497.09,0.00021917,2]
[363128392,1748593840501,-420.0,0.00021917,2]
[363128394,1748593840511,-420.0,0.00021917,2]
[363128396,1748593840521,-420.0,0.00021917,2]
[363128397,1748593840531,-420.0,0.00021917,2]
[363128398,1748593840542,-503.73152989,0.00021917,2]
[363128399,1748593840553,-533.16,0.00021917,2]
[363128400,1748593840563,-922.78,0.00021917,2]
[363128401,1748593840573,-422.53767901,0.00021917,2]
[363128402,1748593840583,-420.0,0.00021917,2]
[363128403,1748593840594,-503.87081854,0.00021917,2]
[363128404,1748593840604,-420.0,0.00021917,2]
[363128405,1748593840617,-500.0,0.00021917,2]
[363128406,1748593840627,-420.0,0.00021917,2]
[363128407,1748593840637,-500.0,0.00021917,2]
[363128408,1748593840647,-420.0,0.00021917,2]
[363128409,1748593840657,-420.0,0.00021917,2]
[363128410,1748593840668,-420.0,0.00021917,2]
[363128411,1748593840678,-500.0,0.00021917,2]
[363128412,1748593840688,-420.0,0.00021917,2]
[363128413,1748593840698,-420.0,0.00021917,2]
[363128414,1748593840709,-420.0,0.00021917,2]
[363128415,1748593840719,-420.0,0.00021917,2]
[363128416,1748593840729,-477.41,0.00021917,2]
[363128417,1748593840739,-420.0,0.00021917,2]
[363128418,1748593840749,-420.0,0.00021917,2]
[363128419,1748593840760,-420.0,0.00021917,2]
[363128420,1748593840770,-420.0,0.00021917,2]
[363128421,1748593840780,-420.0,0.00021917,2]
[363128422,1748593840790,-420.0,0.00021917,2]
[363128423,1748593840800,-420.0,0.00021917,2]
[363128424,1748593840810,-420.0,0.00021917,2]
[363128425,1748593840821,-500.0,0.00021917,2]
[363128426,1748593840831,-420.0,0.00021917,2]
[363128427,1748593840841,-420.0,0.00021917,2]
[363128428,1748593840851,-420.0,0.00021917,2]
[363128429,1748593840862,-500.0,0.00021917,2]
[363128430,1748593840872,-420.0,0.00021917,2]
[363128431,1748593840881,-420.0,0.00021917,2]
[363128432,1748593840891,-563.07,0.00021917,2]
[363128433,1748593840901,-420.0,0.00021917,2]
[363128434,1748593840911,-420.0,0.00021917,2]
[363128435,1748593840921,-420.0,0.00021917,2]
[363128436,1748593840931,-420.0,0.00021917,2]
[363128437,1748593840941,-202.37962199,0.00021917,2]
[363128438,1748593840951,-420.0,0.00021917,2]
[363128439,1748593840961,-420.0,0.00021917,2]
[363128440,1748593840971,-420.0,0.00021917,2]
[363128441,1748593840981,-420.0,0.00021917,2]
[363128442,1748593840991,-420.0,0.00021917,2]
[363128443,1748593841002,-420.0,0.00021917,2]
[363128444,1748593841013,-420.83,0.00021917,2]
[363128445,1748593841022,-1613.541347,0.00021917,2]
[363128446,1748593841032,-420.0,0.00021917,2]
[363128447,1748593841043,-1371.387898,0.00021917,2]
[363128448,1748593841054,-599.04,0.00021917,2]
[363128449,1748593841064,-420.0,0.00021917,2]
[363128450,1748593841074,-500.0,0.00021917,2]
[363128451,1748593841086,-541.62,0.00021917,2]
[363128452,1748593841096,-420.0,0.00021917,2]
[363128453,1748593841106,-420.0,0.00021917,2]
[363128454,1748593841119,-420.0,0.00021917,2]
[363128455,1748593841130,-420.0,0.00021917,2]
[363128456,1748593841375,-500.0,0.00021917,2]
[363128457,1748593841443,-711.63,0.00021917,2]
[363128458,1748593841453,-420.0,0.00021917,2]
[363128459,1748593841463,-420.0,0.00021917,2]
[363128460,1748593841473,-500.0,0.00021917,2]
[363128461,1748593841483,-420.0,0.00021917,2]
[363128462,1748593841493,-505.15987221,0.00021917,2]
[363128463,1748593841502,-491.46,0.00021917,2]
[363128464,1748593841512,-420.0,0.00021917,2]
[363128465,1748593841521,-420.0,0.00021917,2]
[363128466,1748593841531,-421.03,0.00021917,2]
[363128467,1748593841541,-420.0,0.00021917,2]
[363128468,1748593841551,-420.0,0.00021917,2]
[363128469,1748593841562,-493.37,0.00021917,2]
[363128470,1748593841573,-500.0,0.00021917,2]
[363128471,1748593841584,-420.0,0.00021917,2]
[363128472,1748593841595,-1267.24,0.00021917,2]
[363128473,1748593841605,-420.0,0.00021917,2]
[363128474,1748593841615,-502.94330181,0.00021917,2]
[363128475,1748593841625,-421.21367918,0.00021917,2]
[363128476,1748593841635,-430.95,0.00021917,2]
[363128477,1748593841646,-420.0,0.00021917,2]
[363128478,1748593841655,-420.0,0.00021917,2]
[363128479,1748593841666,-420.0,0.00021917,2]
[363128480,1748593841676,-500.0,0.00021917,2]
[363128481,1748593841685,-500.0,0.00021917,2]
[363128482,1748593841696,-420.0,0.00021917,2]
[363128483,1748593841706,-420.0,0.00021917,2]
[363128484,1748593841716,-420.0,0.00021917,2]
[363128485,1748593841726,-500.0,0.00021917,2]
[363128486,1748593841736,-514.1424552,0.00021917,2]
[363128487,1748593841746,-491.08053124,0.00021917,2]
[363128488,1748593841756,-420.0,0.00021917,2]
[363128489,1748593841766,-501.13905601,0.00021917,2]
[363128490,1748593841775,-420.0,0.00021917,2]
[363128491,1748593841785,-502.89248781,0.00021917,2]
[363128492,1748593841795,-433.79,0.00021917,2]
[363128493,1748593841805,-768.3,0.00021917,2]
[363128494,1748593841815,-420.0,0.00021917,2]
[363128495,1748593841824,-842.78,0.00021917,2]
[363128496,1748593841836,-420.0,0.00021917,2]
[363128497,1748593841846,-500.0,0.00021917,2]
[363128498,1748593841856,-420.0,0.00021917,2]
[363128499,1748593841865,-420.0,0.00021917,2]
[363128500,1748593841875,-420.0,0.00021917,2]
[363128501,1748593841884,-420.0,0.00021917,2]
[363128502,1748593841894,-502.70504145,0.00021917,2]
[363128503,1748593841903,-872.27,0.00021917,2]
[363128504,1748593841914,-502.75890597,0.00021917,2]
[363128505,1748593841923,-420.0,0.00021917,2]
[363128506,1748593841933,-1032.45,0.00021917,2]
[363128507,1748593841943,-271.72721888,0.00021917,2]
[363128508,1748593841953,-420.0,0.00021917,2]
[363128509,1748593841964,-562.67,0.00021917,2]
[363128510,1748593841974,-502.77152193,0.00021917,2]
[363128511,1748593841984,-420.0,0.00021917,2]
[363128512,1748593841994,-420.0,0.00021917,2]
[363128513,1748593842006,-488.85,0.00021917,2]
[363128514,1748593842016,-420.0,0.00021917,2]
[363128515,1748593842026,-420.0,0.00021917,2]
[363128516,1748593842036,-420.0,0.00021917,2]
[363128517,1748593842046,-500.0,0.00021917,2]
[363128518,1748593842056,-420.0,0.00021917,2]
[363128519,1748593842065,-420.0,0.00021917,2]
[363128520,1748593842075,-420.0,0.00021917,2]
[363128521,1748593842085,-501.90838941,0.00021917,2]
[363128522,1748593842095,-420.0,0.00021917,2]
[363128523,1748593842105,-420.0,0.00021917,2]
[363128524,1748593842116,-502.03639381,0.00021917,2]
[363128525,1748593842127,-431.49701578,0.00021917,2]
[363128526,1748593842137,-503.04124263,0.00021917,2]
[363128527,1748593842147,-420.0,0.00021917,2]
[363128528,1748593842159,-420.0,0.00021917,2]
[363128529,1748593842171,-420.0,0.00021917,2]
[363128530,1748593842182,-420.0,0.00021917,2]
[363128531,1748593842194,-420.0,0.00021917,2]
[363128532,1748593842205,-848.69,0.00021917,2]
[363128533,1748593842215,-2182.41,0.00021917,2]
[363128534,1748593842225,-1081.79,0.00021917,2]
[363128535,1748593842234,-420.0,0.00021917,2]
[363128536,1748593842244,-420.0,0.00021917,2]
[363128537,1748593842254,-420.0,0.00021917,2]
[363128538,1748593842265,-1561.27,0.00021917,2]
[363128539,1748593842275,-917.29,0.00021917,2]
[363128540,1748593842284,-463.81,0.00021917,2]
[363128541,1748593842294,-420.0,0.00021917,2]
[363128542,1748593842303,-420.0,0.00021917,2]
[363128543,1748593842313,-719.08,0.00021917,2]
[363128544,1748593842323,-420.0,0.00021917,2]
[363128545,1748593842333,-1143.2,0.00021917,2]
[363128546,1748593842343,-1839.83,0.00021917,2]
[363128547,1748593842352,-420.0,0.00021917,2]
[363128548,1748593842362,-420.0,0.00021917,2]
[363128549,1748593842372,-420.0,0.00021917,2]
[363128550,1748593842382,-428.05,0.00021917,2]
[363128551,1748593842391,-420.0,0.00021917,2]
[363128552,1748593842402,-420.0,0.00021917,2]
[363128553,1748593842412,-420.0,0.00021917,2]
[363128554,1748593842421,-420.0,0.00021917,2]
[363128555,1748593842431,-2806.32,0.00021917,2]
[363128556,1748593842440,-420.0,0.00021917,2]
[363128557,1748593842450,-617.71,0.00021917,2]
[363128558,1748593842461,-1285.36,0.00021917,2]
[363128559,1748593842470,-482.9318789,0.00021917,2]
[363128560,1748593842480,-1264.19,0.00021917,2]
[363128561,1748593842490,-160.0,0.00021917,2]
[363128562,1748593842500,-483.58629136,0.00021917,2]
[363128563,1748593842510,-420.0,0.00021917,2]
[363128564,1748593842519,-420.0,0.00021917,2]
[363128565,1748593842529,-160.0,0.00021917,2]
[363128566,1748593842539,-740.74,0.00021917,2]
[363128567,1748593842548,-420.0,0.00021917,2]
[363128568,1748593842559,-590.77,0.00021917,2]
[363128569,1748593842569,-420.0,0.00021917,2]
[363128570,1748593842581,-158.578473,0.00021917,2]
[363128571,1748593842591,-420.0,0.00021917,2]
[363128572,1748593842600,-500.0,0.00021917,2]
[363128573,1748593842610,-762.5,0.00021917,2]
[363128574,1748593842620,-536.43,0.00021917,2]
[363128575,1748593842629,-420.0,0.00021917,2]
[363128577,1748593842639,-473.43,0.00021917,2]
[363128579,1748593842649,-420.0,0.00021917,2]
[363128580,1748593842659,-160.0,0.00021917,2]
[363128581,1748593842669,-420.0,0.00021917,2]
[363128582,1748593842678,-499.78,0.00021917,2]
[363128583,1748593842688,-420.0,0.00021917,2]
[363128584,1748593842698,-445.98,0.00021917,2]
[363128585,1748593842708,-1626.93,0.00021917,2]
[363128587,1748593842718,-654.14,0.00021917,2]
[363128590,1748593842727,-160.0,0.00021917,2]
[363128594,1748593842737,-420.0,0.00021917,2]
[363128595,1748593842747,-160.0,0.00021917,2]
[363128596,1748593842757,-420.0,0.00021917,2]
[363128598,1748593842768,-420.0,0.00021917,2]
[363128599,1748593842779,-420.0,0.00021917,2]
[363128600,1748593842789,-420.0,0.00021917,2]
[363128602,1748593842799,-160.0,0.00021917,2]
[363128603,1748593842809,-517.92,0.00021917,2]
[363128604,1748593842819,-500.0,0.00021917,2]
[363128605,1748593842830,-831.8,0.00021917,2]
[363128606,1748593842841,-1339.52,0.00021917,2]
[363128607,1748593842851,-1423.4,0.00021917,2]
[363128608,1748593842861,-755.14,0.00021917,2]
[363128609,1748593842871,-420.0,0.00021917,2]
[363128611,1748593842881,-434.43,0.00021917,2]
[363128612,1748593842890,-509.65481666,0.00021917,2]
[363128613,1748593842901,-501.87152561,0.00021917,2]
[363128614,1748593842911,-420.0,0.00021917,2]
[363128615,1748593842922,-160.0,0.00021917,2]
[363128616,1748593842931,-420.0,0.00021917,2]
[363128617,1748593842941,-420.0,0.00021917,2]
[363128618,1748593842950,-510.61984279,0.00021917,2]
[363128619,1748593842960,-160.0,0.00021917,2]
[363128620,1748593842970,-420.0,0.00021917,2]
[363128621,1748593842980,-1442.73,0.00021917,2]
[363128622,1748593842991,-420.0,0.00021917,2]
[363128623,1748593843001,-420.0,0.00021917,2]
[363128624,1748593843011,-500.0,0.00021917,2]
[363128625,1748593843020,-420.0,0.00021917,2]
[363128626,1748593843030,-160.0,0.00021917,2]
[363128627,1748593843039,-826.81,0.00021917,2]
[363128628,1748593843049,-420.0,0.00021917,2]
[363128629,1748593843058,-420.0,0.00021917,2]
[363128630,1748593843068,-420.0,0.00021917,2]
[363128631,1748593843078,-420.0,0.00021917,2]
[363128632,1748593843089,-578.5,0.00021917,2]
[363128633,1748593843099,-420.0,0.00021917,2]
[363128634,1748593843109,-1980.22,0.00021917,2]
[363128635,1748593843124,-1415.9,0.00021917,2]
[363128636,1748593843134,-1366.19,0.00021917,2]
[363128637,1748593843143,-800.9,0.00021917,2]
[363128638,1748593843154,-420.0,0.00021917,2]
[363128639,1748593843166,-261.91502367,0.00021917,2]
[363128640,1748593843175,-505.68514956,0.00021917,2]
[363128641,1748593843185,-420.0,0.00021917,2]
[363128642,1748593843197,-500.0,0.00021917,2]
[363128643,1748593843207,-500.0,0.00021917,2]
[363128644,1748593843220,-1601.11,0.00021917,2]
[363128645,1748593843239,-751.45,0.00021917,2]
[363128646,1748593843250,-420.0,0.00021917,2]
[363128647,1748593843261,-420.0,0.00021917,2]
[363128648,1748593843271,-1566.6,0.00021917,2]
[363128649,1748593843286,-1236.81,0.00021917,2]
[363128650,1748593843299,-420.0,0.00021917,2]
[363128651,1748593843312,-1000.0,0.00021917,2]
[363128652,1748593843324,-196.06,0.00021917,2]
[363128653,1748593843334,-420.0,0.00021917,2]
[363128654,1748593843345,-545.18,0.00021917,2]
[363128655,1748593843354,-420.0,0.00021917,2]
[363128656,1748593843363,-2431.8,0.00021917,2]
[363128657,1748593843372,-737.73,0.00021917,2]
[363128658,1748593843382,-420.0,0.00021917,2]
[363128659,1748593843392,-1248.86,0.00021917,2]
[363128660,1748593843401,-420.0,0.00021917,2]
[363128661,1748593843411,-572.26,0.00021917,2]
[363128662,1748593843421,-595.83,0.00021917,2]
[363128663,1748593843431,-420.0,0.00021917,2]
[363128664,1748593843440,-420.0,0.00021917,2]
[363128665,1748593843449,-500.0,0.00021917,2]
[363128666,1748593843459,-420.0,0.00021917,2]
[363128667,1748593843469,-420.0,0.00021917,2]
[363128668,1748593843479,-497.83,0.00021917,2]
[363128669,1748593843488,-500.0,0.00021917,2]
[363128670,1748593843498,-420.0,0.00021917,2]
[363128671,1748593843508,-501.7,0.00021917,2]
[363128672,1748593843518,-420.0,0.00021917,2]
[363128673,1748593843528,-420.0,0.00021917,2]
[363128674,1748593843539,-1245.89,0.00021917,2]
[363128675,1748593843549,-420.0,0.00021917,2]
[363128676,1748593843558,-654.07,0.00021917,2]
[363128677,1748593843569,-277.13366348,0.00021917,2]
[363128678,1748593843579,-848.05,0.00021917,2]
[363128679,1748593843591,-485.11,0.00021917,2]
[363128680,1748593843601,-420.0,0.00021917,2]
[363128681,1748593843611,-3293.54620311,0.00021917,2]
[363128682,1748593843621,-420.0,0.00021917,2]
[363128683,1748593843631,-420.0,0.00021917,2]
[363128684,1748593843641,-832.79,0.00021917,2]
[363128685,1748593843651,-420.0,0.00021917,2]
[363128686,1748593843661,-420.0,0.00021917,2]
[363128687,1748593843671,-1166.64,0.00021917,2]
[363128688,1748593843681,-420.0,0.00021917,2]
[363128689,1748593843691,-2524.11,0.00021917,2]
[363128690,1748593843701,-420.0,0.00021917,2]
[363128691,1748593843710,-502.07607281,0.00021917,2]
[363128692,1748593843721,-426.5,0.00021917,2]
[363128693,1748593843732,-420.0,0.00021917,2]
[363128694,1748593843741,-705.96,0.00021917,2]
[363128695,1748593843751,-420.0,0.00021917,2]
[363128696,1748593843761,-692.17,0.00021917,2]
[363128697,1748593843771,-748.84,0.00021917,2]
[363128698,1748593843780,-488.42,0.00021917,2]
[363128699,1748593843790,-420.0,0.00021917,2]
[363128700,1748593843800,-420.0,0.00021917,2]
[363128701,1748593843810,-1985.26,0.00021917,2]
[363128702,1748593843819,-500.0,0.00021917,2]
[363128703,1748593843828,-599.37,0.00021917,2]
[363128704,1748593843839,-420.0,0.00021917,2]
[363128705,1748593843848,-420.0,0.00021917,2]
[363128706,1748593843858,-898.36,0.00021917,2]
[363128707,1748593843867,-473.65,0.00021917,2]
[363128708,1748593843945,-367.54817576,0.00021917,2]
[363128709,1748593843955,-420.0,0.00021917,2]
[363128710,1748593843964,-420.0,0.00021917,2]
[363128711,1748593843974,-798.52,0.00021917,2]
[363128712,1748593843983,-516.31259453,0.00021917,2]
[363128713,1748593843993,-1045.82,0.00021917,2]
[363128714,1748593844003,-502.86583596,0.00021917,2]
[363128715,1748593844013,-420.0,0.00021917,2]
[363128716,1748593844023,-500.0,0.00021917,2]
[363128717,1748593844032,-420.0,0.00021917,2]
[363128718,1748593844042,-951.56,0.00021917,2]
[363128719,1748593844051,-425.35899265,0.00021917,2]
[363128720,1748593844060,-420.0,0.00021917,2]
[363128721,1748593844069,-424.2585971,0.00021917,2]
[363128722,1748593844079,-420.0,0.00021917,2]
[363128723,1748593844090,-504.66539613,0.00021917,2]
[363128724,1748593844100,-420.0,0.00021917,2]
[363128725,1748593844110,-420.0,0.00021917,2]
[363128726,1748593844123,-420.0,0.00021917,2]
[363128727,1748593844132,-425.36307424,0.00021917,2]
[363128728,1748593844142,-1258.39,0.00021917,2]
[363128729,1748593844151,-1012.4,0.00021917,2]
[363128730,1748593844161,-420.0,0.00021917,2]
[363128731,1748593844170,-500.0,0.00021917,2]
[363128732,1748593844179,-420.0,0.00021917,2]
[363128733,1748593844188,-501.66471748,0.00021917,2]
[363128734,1748593844199,-420.0,0.00021917,2]
[363128735,1748593844210,-420.0,0.00021917,2]
[363128736,1748593844219,-420.0,0.00021917,2]
[363128737,1748593844229,-655.77,0.00021917,2]
[363128738,1748593844239,-420.0,0.00021917,2]
[363128739,1748593844248,-612.46,0.00021917,2]
[363128740,1748593844258,-856.89,0.00021917,2]
[363128741,1748593844268,-528.98,0.00021917,2]
[363128742,1748593844277,-730.29,0.00021917,2]
[363128743,1748593844287,-420.0,0.00021917,2]
[363128744,1748593844297,-2028.31,0.00021917,2]
[363128745,1748593844308,-500.0,0.00021917,2]
[363128746,1748593844317,-500.0,0.00021917,2]
[363128747,1748593844326,-420.0,0.00021917,2]
[363128748,1748593844335,-434.68,0.00021917,2]
[363128749,1748593844344,-533.26195321,0.00021917,2]
[363128750,1748593844354,-1321.72,0.00021917,2]